bitfinex/quotes_ETHUSD_20251116
["timestamp","ask_amount","ask_price","bid_price","bid_amount"]
[1763289606012,0.001,3236.9,3236.8,7.9587078]
[1763289607475,0.001,3236.9,3236.8,7.4597078]
[1763289608188,0.001,3236.9,3236.8,7.9587078]
[1763289616720,0.001,3236.9,3236.8,8.3642118]
[1763289617021,0.001,3236.9,3236.8,9.05134218]
[1763289618892,0.001,3237.1,3237.0,0.905504]
[1763289619207,0.001,3237.1,3237.0,1.4127968]
[1763289619526,0.001,3237.1,3237.0,3.9516898]
[1763289620903,0.001,3237.1,3237.0,7.01007719]
[1763289624840,0.001,3237.5,3237.0,7.01007719]
[1763289624841,0.001,3237.5,3237.2,4.62833413]
[1763289625003,0.001,3237.5,3237.4,4.1219149]
[1763289625420,0.001,3237.5,3237.4,4.5960149]
[1763289627036,0.001,3237.5,3237.4,9.74349934]
[1763289628306,0.001,3237.5,3237.4,9.04235725]
[1763289628741,0.001,3237.5,3237.4,10.44750945]
[1763289630942,0.001,3237.8,3237.5,2.0392448]
[1763289631142,0.001,3238.2,3237.8,0.881904]
[1763289631472,0.001,3238.6,3238.2,2.0156448]
[1763289631673,0.001,3238.6,3238.5,5.95345876]
[1763289631855,0.001,3238.6,3238.5,6.42755876]
[1763289632170,0.001,3238.9,3238.6,2.0392448]
[1763289632343,0.001,3238.9,3238.6,2.9897448]
[1763289632540,0.001,3239.0,3238.9,0.905504]
[1763289632743,0.001,3239.0,3238.9,6.42755876]
[1763289633369,0.001,3239.0,3238.9,9.51502672]
[1763289636980,0.001,3239.0,3238.9,9.05942672]
[1763289637511,0.4902,3239.0,3238.9,4.62671276]
[1763289637716,0.001,3239.0,3238.9,8.56452672]
[1763289637868,0.001,3239.0,3238.9,9.05942672]
[1763289639210,0.4902,3239.0,3238.9,8.56452672]
[1763289639367,0.001,3239.0,3238.9,8.56452672]
[1763289639761,0.4902,3239.0,3238.9,8.15902272]
[1763289640301,0.4902,3239.0,3238.9,9.09007492]
[1763289640596,0.9694,3239.0,3238.9,0.5]
[1763289640839,0.9694,3239.0,3238.8,0.5]
[1763289640983,0.001,3239.0,3238.9,2.85264778]
[1763289641376,0.6745,3239.0,3238.9,1.71890698]
[1763289641600,1.1537,3239.0,3238.9,1.71890698]
[1763289641966,1.1537,3239.0,3238.9,2.85264778]
[1763289642900,1.1537,3239.0,3238.9,1.1337408]
[1763289643198,1.1537,3239.0,3238.9,2.85264778]
[1763289643578,1.1537,3239.0,3238.8,5.30644289]
[1763289643903,0.729,3238.9,3238.8,1.1337408]
[1763289644467,1.12915791,3238.9,3238.8,1.1337408]
[1763289644684,1.12915791,3238.9,3238.2,0.5]
[1763289644685,0.729,3238.9,3238.2,0.5]
[1763289644882,0.4868,3238.3,3238.2,0.5]
[1763289645292,0.966,3238.3,3238.2,0.5]
[1763289645497,0.966,3238.3,3238.2,4.72187618]
[1763289646109,0.966,3238.3,3237.5,3.08875967]
[1763289646110,0.966,3238.3,3238.1,0.5]
[1763289646318,0.4792,3238.2,3238.1,0.5]
[1763289646517,0.9684,3238.2,3237.9,1.1337408]
[1763289646710,0.4792,3238.2,3238.0,0.5]
[1763289646896,0.4792,3238.1,3238.0,0.5]
[1763289647220,0.9684,3238.1,3238.0,0.5]
[1763289647382,0.9684,3238.1,3238.0,4.72206692]
[1763289647882,0.4792,3238.4,3238.3,0.5]
[1763289648227,0.4792,3238.4,3238.3,3.6451155]
[1763289648516,0.9684,3238.4,3238.3,3.6451155]
[1763289648727,0.4792,3238.9,3238.4,1.1337408]
[1763289648912,0.4792,3238.9,3238.8,1.6337408]
[1763289649296,0.9684,3238.9,3238.8,1.6337408]
[1763289649487,0.4892,3238.9,3238.8,4.72130409]
[1763289649887,0.9684,3238.9,3238.8,4.72130409]
[1763289651129,0.4892,3238.9,3238.8,4.72130409]
[1763289651292,0.9684,3238.9,3238.8,4.72130409]
[1763289653234,0.9684,3238.9,3238.8,1.6337408]
[1763289653927,0.9684,3238.9,3238.8,0.5]
[1763289654124,0.9684,3238.9,3238.8,1.6337408]
[1763289655218,0.9684,3238.9,3238.8,4.72130409]
[1763289660736,0.9684,3238.9,3238.8,1.6337408]
[1763289660938,0.9684,3238.9,3238.3,1.1337408]
[1763289661128,0.2582,3238.5,3238.2,3.08813538]
[1763289661475,0.4868,3238.3,3237.6,3.08870768]
[1763289661628,0.2605,3238.2,3237.9,0.5]
[1763289661834,0.4792,3238.7,3237.9,0.5]
[1763289662054,0.6735,3238.0,3237.9,0.5]
[1763289662370,0.6735,3238.0,3237.9,3.5884215]
[1763289662540,1.1527,3238.0,3237.9,3.5884215]
[1763289662872,1.1527,3238.0,3237.9,4.7221623]
[1763289663169,1.1527,3238.0,3237.9,0.5]
[1763289663379,1.1527,3238.0,3237.9,4.7221623]
[1763289663726,1.1527,3238.0,3237.9,0.5]
[1763289663926,1.1527,3238.0,3237.7,0.5]
[1763289664145,0.2582,3237.8,3237.7,0.5]
[1763289664346,0.7554,3237.8,3237.7,3.58861228]
[1763289667369,0.7554,3237.8,3237.7,5.3081608]
[1763289667684,0.7554,3237.8,3237.7,0.5]
[1763289667862,0.7554,3237.8,3237.3,0.5]
[1763289668168,0.4972,3237.7,3237.4,1.1337408]
[1763289668377,0.4972,3237.7,3237.2,1.71954852]
[1763289668669,0.4972,3237.7,3236.8,1.71954852]
[1763289668969,0.4972,3237.7,3236.9,1.6357408]
[1763289668970,0.2382,3237.0,3236.9,1.6357408]
[1763289669558,0.7354,3237.0,3236.9,0.502]
[1763289669779,0.7354,3237.0,3236.9,2.22154852]
[1763289671070,0.7354,3237.0,3236.9,3.59137563]
[1763289672952,0.7354,3237.0,3236.9,4.72511643]
[1763289673773,0.40280502,3237.8,3236.9,4.72511643]
[1763289673980,0.4972,3237.7,3237.1,0.5]
[1763289674342,0.4607,3237.2,3237.1,0.5]
[1763289675303,0.9586,3237.2,3237.1,0.5]
[1763289677193,0.9586,3237.2,3237.1,3.58918476]
[1763289677396,0.4979,3237.6,3237.1,3.58918476]
[1763289677793,0.4607,3237.2,3237.1,3.58918476]
[1763289679980,0.9586,3237.2,3237.1,3.58918476]
[1763289681566,0.9586,3237.2,3237.0,1.1337408]
[1763289681771,0.7658,3237.1,3236.9,1.6357408]
[1763289681970,0.4588,3237.0,3236.9,4.72510536]
[1763289686004,0.4588,3237.0,3236.9,1.6357408]
[1763289686215,0.9567,3237.0,3236.9,1.6357408]
[1763289686509,0.9567,3237.0,3236.9,4.72511643]
[1763289687910,0.4979,3237.3,3236.9,7.81449206]
[1763289688099,0.4979,3237.3,3237.1,0.5]
[1763289688507,0.4607,3237.2,3237.1,0.5]
[1763289688818,0.4979,3237.6,3237.2,0.5]
[1763289689011,0.4979,3237.6,3237.3,0.03088993]
[1763289689211,0.4607,3237.3,3237.2,0.5]
[1763289689576,0.9586,3237.3,3237.2,0.5]
[1763289690378,0.9586,3237.3,3237.1,1.6337408]
[1763289690581,0.7658,3237.2,3237.1,1.6337408]
[1763289690781,0.7658,3237.2,3237.1,4.72292556]
[1763289691713,0.2679,3237.2,3237.1,4.72292556]
[1763289693020,0.2679,3237.2,3237.1,6.33561587]
[1763289693452,0.7658,3237.2,3237.1,4.22292556]
[1763289696625,0.7658,3237.2,3237.0,0.5]
[1763289696811,0.9543,3237.1,3237.0,4.72301232]
[1763289697016,0.9543,3237.1,3237.0,6.33570263]
[1763289697798,0.4588,3237.1,3237.0,6.33570263]
[1763289697994,0.1843,3238.0,3237.1,1.1337408]
[1763289698236,0.4781,3237.1,3237.0,0.5]
[1763289698732,0.9736,3237.1,3237.0,1.6337408]
[1763289699038,0.9736,3237.1,3237.0,3.58928019]
[1763289701254,0.9736,3237.1,3236.9,4.22508135]
[1763289701408,0.7485,3237.0,3236.9,4.22508135]
[1763289705867,0.253,3237.0,3236.9,4.22508135]
[1763289706146,0.4955,3237.2,3237.1,0.5]
[1763289706345,0.4955,3237.2,3237.1,6.33561587]
[1763289706510,0.9736,3237.2,3237.1,6.33561587]
[1763289707230,0.4955,3237.6,3237.2,1.1337408]
[1763289707559,0.4955,3237.6,3237.4,0.5]
[1763289707910,0.4781,3237.5,3237.4,0.5]
[1763289708413,0.9736,3237.5,3237.4,0.5]
[1763289711951,0.9736,3237.5,3237.2,4.72275735]
[1763289712249,0.253,3237.3,3237.2,4.72275735]
[1763289713330,0.7485,3237.3,3237.2,4.72275735]
[1763289713938,0.7485,3237.3,3237.2,1.6337408]
[1763289714144,0.7485,3237.3,3237.2,0.5]
[1763289714456,0.7485,3237.3,3237.2,1.6337408]
[1763289714640,0.7485,3237.3,3237.2,4.72283013]
[1763289715353,0.7485,3237.3,3237.2,1.6337408]
[1763289716530,0.7485,3237.3,3237.2,4.72283013]
[1763289718135,0.7485,3237.3,3237.2,1.6337408]
[1763289720356,0.7485,3237.3,3237.2,4.72283013]
[1763289720561,0.7485,3237.3,3237.2,1.1337408]
[1763289722855,0.253,3237.3,3237.2,4.22283013]
[1763289723427,0.7485,3237.3,3237.2,1.1337408]
[1763289723826,0.7485,3237.3,3237.2,4.22283013]
[1763289724065,0.7485,3237.3,3237.2,1.1337408]
[1763289725560,0.7485,3237.3,3237.1,0.002]
[1763289725561,4.126241,3237.3,3237.1,0.002]
[1763289725864,1.97336936,3237.2,3237.1,0.002]
[1763289727846,5.06245869,3237.2,3237.1,0.002]
[1763289728266,1.97336936,3237.2,3237.1,0.002]
[1763289728561,4.34093558,3237.2,3237.1,0.002]
[1763289732664,1.25184625,3237.2,3237.1,0.002]
[1763289736241,1.25130302,3237.2,3237.1,0.002]
[1763289736971,0.4737,3237.6,3237.1,0.4744]
[1763289737161,0.76177469,3237.5,3237.1,0.4744]
[1763289737362,0.28807469,3237.4,3237.1,0.4744]
[1763289737563,0.4737,3237.4,3237.1,0.4744]
[1763289737761,0.4737,3237.4,3237.1,0.002]
[1763289738169,6.65072656,3237.9,3237.3,2.08509031]
[1763289738363,0.97149404,3237.8,3237.3,0.4724]
[1763289738538,0.28799138,3237.7,3237.3,0.4724]
[1763289738740,0.28799138,3237.6,3237.3,0.4724]
[1763289738977,0.28799138,3237.5,3237.2,0.1752]
[1763289739180,0.76169138,3237.6,3237.2,0.1752]
[1763289739477,0.28799138,3237.5,3237.2,0.1752]
[1763289741182,0.4737,3237.6,3237.2,0.1752]
[1763289741480,0.28811553,3237.5,3237.2,0.1752]
[1763289741691,3.56240823,3237.6,3237.2,0.1752]
[1763289741850,0.28811624,3237.5,3237.2,0.1752]
[1763289742149,3.56240823,3237.6,3237.2,0.1752]
[1763289742477,0.28813036,3237.5,3237.2,0.1752]
[1763289742643,3.56240823,3237.6,3237.2,0.1752]
[1763289742845,0.28813038,3237.5,3237.2,0.1752]
[1763289743046,0.4762,3237.3,3237.1,2.22230744]
[1763289743248,0.2765,3237.2,3237.1,2.22230744]
[1763289743680,0.4737,3237.5,3237.1,2.22230744]
[1763289743886,3.56251341,3237.5,3237.1,2.22230744]
[1763289744182,0.4762,3237.2,3237.1,2.22230744]
[1763289744546,0.4762,3237.2,3237.1,0.502]
[1763289744849,0.9499,3237.2,3237.1,0.002]
[1763289745879,0.4737,3237.7,3237.1,0.4744]
[1763289746046,0.76184672,3237.6,3237.1,0.4744]
[1763289746243,0.28814672,3237.5,3237.1,0.4744]
[1763289746447,0.28814672,3237.4,3237.1,0.002]
[1763289746682,0.4737,3237.5,3237.1,0.002]
[1763289746846,0.28817393,3237.4,3237.1,0.002]
[1763289747048,0.4737,3237.5,3237.1,0.002]
[1763289747248,0.28819237,3237.4,3237.1,0.002]
[1763289747461,0.4737,3237.5,3237.1,0.002]
[1763289747664,0.76191684,3237.4,3237.1,0.002]
[1763289747986,0.4737,3237.4,3237.1,0.002]
[1763289748288,0.4737,3237.5,3237.1,0.002]
[1763289748493,0.28827667,3237.4,3237.1,0.002]
[1763289748651,0.4737,3237.5,3237.1,0.002]
[1763289748851,0.28828871,3237.4,3237.1,0.002]
[1763289749060,0.4737,3237.5,3237.1,0.002]
[1763289749266,0.28835863,3237.4,3237.2,1.72030744]
[1763289749589,3.56231549,3237.7,3237.2,1.72030744]
[1763289749840,0.4737,3238.5,3237.6,1.72030744]
[1763289750036,0.28845543,3238.4,3238.0,0.5]
[1763289750222,0.28845543,3238.3,3237.7,0.5]
[1763289750541,0.4737,3238.5,3237.7,0.5]
[1763289750542,0.28845543,3238.2,3237.7,0.5]
[1763289750834,0.28845543,3238.1,3237.8,1.72030744]
[1763289751013,0.4737,3238.4,3237.8,1.72030744]
[1763289751205,0.28833241,3238.3,3237.8,1.72030744]
[1763289751406,0.4737,3238.4,3237.8,5.94250271]
[1763289751613,0.28835045,3238.3,3237.8,5.94250271]
[1763289751799,3.56166944,3238.4,3237.8,5.94250271]
[1763289752002,0.28835049,3238.3,3237.8,1.72030744]
[1763289752304,3.56166944,3238.4,3237.8,1.72030744]
[1763289752505,0.28825976,3238.3,3237.8,5.94256056]
[1763289752804,3.56166944,3238.4,3237.8,5.94256056]
[1763289753005,0.28826012,3238.3,3237.8,5.94256056]
[1763289753438,0.76196012,3238.3,3237.8,5.94256056]
[1763289753649,0.4737,3238.3,3237.8,5.94256056]
[1763289753957,3.56174082,3238.3,3237.8,1.72030744]
[1763289754126,0.4737,3238.3,3237.8,4.80879556]
[1763289754327,0.4737,3238.2,3237.8,1.72030744]
[1763289755556,0.4737,3238.2,3237.7,4.72232955]
[1763289756260,0.4737,3238.2,3237.7,5.20172955]
[1763289756764,0.4737,3238.2,3237.7,8.29034183]
[1763289756929,0.4621,3238.4,3237.9,1.72030744]
[1763289757659,3.55005362,3238.4,3237.9,1.72030744]
[1763289757956,0.4621,3238.4,3237.9,1.72030744]
[1763289758262,0.4621,3238.3,3237.9,1.72030744]
[1763289759857,0.4621,3238.6,3237.9,4.8087166]
[1763289760061,0.28785321,3238.5,3238.2,0.4951]
[1763289760250,0.28785321,3238.6,3238.2,0.4951]
[1763289760962,0.28785321,3238.7,3238.5,2.21540744]
[1763289761159,0.001,3238.9,3238.5,0.5]
[1763289761327,0.4765,3238.6,3238.0,1.1337408]
[1763289761523,0.284,3238.4,3238.0,1.6337408]
[1763289761934,0.284,3238.4,3238.2,1.1337408]
[1763289762279,0.284,3238.4,3237.7,0.5]
[1763289762280,0.9367,3238.3,3237.7,0.5]
[1763289762564,0.2859,3238.2,3237.7,0.5]
[1763289762741,0.2859,3238.2,3237.7,1.6337408]
[1763289762941,0.2859,3238.2,3237.7,2.1131408]
[1763289763161,0.2859,3238.2,3237.8,2.85404824]
[1763289763462,0.2859,3238.2,3237.8,1.72030744]
[1763289763669,0.748,3238.2,3237.8,1.72030744]
[1763289763983,0.748,3238.2,3237.7,1.6337408]
[1763289764654,0.2859,3238.2,3237.7,1.6337408]
[1763289764840,0.748,3238.2,3237.7,1.6337408]
[1763289765361,0.4621,3238.1,3237.7,1.6337408]
[1763289765563,0.4727,3237.8,3237.5,0.5]
[1763289765750,0.4727,3237.8,3237.5,1.6337408]
[1763289765938,0.9348,3237.8,3237.5,1.6357408]
[1763289766526,0.4727,3237.8,3237.5,4.72453792]
[1763289766932,0.4727,3237.8,3237.5,1.6357408]
[1763289767237,3.55035793,3238.1,3237.5,4.72454129]
[1763289767671,3.55035793,3238.1,3237.5,4.72454254]
[1763289767968,3.08825793,3238.1,3237.6,1.1337408]
[1763289768169,0.4621,3238.0,3237.6,1.1337408]
[1763289769092,0.4621,3238.0,3237.5,4.72451558]
[1763289769296,0.4621,3238.0,3237.5,0.502]
[1763289769594,0.4765,3237.6,3237.5,0.002]
[1763289770797,0.9386,3237.6,3237.5,0.002]
[1763289771000,0.4765,3237.6,3237.5,0.002]
[1763289771165,0.6489,3237.9,3237.5,0.002]
[1763289771367,0.1868,3237.9,3237.5,0.002]
[1763289772203,0.6489,3237.9,3237.5,0.002]
[1763289772496,0.4765,3237.6,3237.5,0.002]
[1763289773486,0.4621,3237.8,3237.5,0.002]
[1763289774826,0.4765,3237.6,3237.5,0.002]
[1763289775401,0.9386,3237.6,3237.5,0.002]
[1763289777979,0.4765,3237.6,3237.5,0.002]
[1763289779113,0.9386,3237.6,3237.5,0.002]
[1763289781304,0.4765,3237.6,3237.5,0.002]
[1763289781511,3.27529706,3237.9,3237.5,0.4971]
[1763289781713,0.7501438,3237.8,3237.5,0.4971]
[1763289782021,0.4621,3237.8,3237.5,0.002]
[1763289783421,3.27529706,3237.9,3237.5,0.002]
[1763289783644,3.08834288,3238.0,3237.7,0.4951]
[1763289783645,0.28803076,3237.8,3237.7,0.4951]
[1763289783931,0.28803076,3237.9,3237.7,0.4951]
[1763289784127,3.5504566,3238.0,3237.7,0.4951]
[1763289784330,0.28803112,3237.9,3237.7,0.4951]
[1763289784628,3.5504566,3238.0,3237.6,1.72030744]
[1763289784837,0.001,3237.8,3237.6,1.72030744]
[1763289785730,0.4959,3237.7,3237.5,0.002]
[1763289787741,0.001,3237.8,3237.5,0.002]
[1763289791247,0.001,3237.8,3237.5,0.4945]
[1763289791618,0.001,3237.8,3237.5,0.002]
[1763289792339,0.493,3237.8,3237.5,0.002]
[1763289792535,0.4959,3237.6,3237.5,0.002]
[1763289793620,1.27612601,3237.6,3237.5,0.002]
[1763289793821,4.36483369,3237.6,3237.5,0.002]
[1763289794022,5.1132754,3237.6,3237.5,0.002]
[1763289795657,5.14325139,3237.6,3237.5,0.002]
[1763289799866,5.1132754,3237.6,3237.5,0.002]
[1763289801829,4.1253754,3237.6,3237.5,0.002]
[1763289802029,4.6161754,3237.6,3237.5,0.002]
[1763289802428,5.0936754,3237.6,3237.5,0.002]
[1763289805433,5.12365139,3237.6,3237.5,0.002]
[1763289808747,5.0936754,3237.6,3237.5,0.002]
[1763289809358,4.6161754,3237.6,3237.5,0.002]
[1763289809543,5.0936754,3237.6,3237.5,0.002]
[1763289817093,0.001,3238.1,3237.5,0.6421]
[1763289817297,0.001,3238.8,3238.7,0.5]
[1763289817597,0.4989,3240.4,3239.2,0.5]
[1763289817778,3.58497588,3240.4,3239.2,4.79041612]
[1763289817984,0.4989,3240.4,3239.2,7.89739634]
[1763289818486,3.08602216,3240.5,3239.2,7.89739634]
[1763289818689,3.08602216,3240.5,3239.2,7.40706473]
[1763289818877,0.4989,3240.7,3239.2,7.40706473]
[1763289819801,3.08592015,3240.6,3239.2,7.40706473]
[1763289821005,0.001,3239.7,3239.2,1.1337408]
[1763289821174,0.4999,3239.6,3239.2,1.1337408]
[1763289821708,0.4999,3239.6,3239.2,1.5986408]
[1763289822096,0.4838,3239.3,3238.9,0.002]
[1763289822429,0.001,3239.3,3239.0,1.61312813]
[1763289823793,0.001,3239.3,3239.2,0.4649]
[1763289825532,0.4838,3239.3,3238.9,4.22320469]
[1763289825814,0.2462,3239.0,3238.9,0.002]
[1763289825977,0.4999,3239.3,3238.9,1.1357408]
[1763289826181,0.4999,3239.3,3238.9,0.002]
[1763289826425,0.4828,3239.0,3238.9,0.002]
[1763289826917,0.9817,3239.0,3238.9,0.002]
[1763289829202,3.44691235,3239.3,3239.1,0.5]
[1763289829203,0.001,3239.3,3239.1,0.5]
[1763289829434,0.001,3239.3,3239.2,0.4649]
[1763289830607,0.4838,3239.3,3238.9,0.002]
[1763289830811,0.2462,3239.2,3238.9,3.08946796]
[1763289831000,0.2462,3239.2,3238.9,0.002]
[1763289831323,0.001,3239.3,3238.9,0.002]
[1763289832011,0.001,3239.3,3239.2,0.4649]
[1763289833002,0.4838,3239.3,3239.1,1.1337408]
[1763289833697,0.4838,3239.3,3239.2,0.4649]
[1763289833698,0.001,3239.3,3239.2,0.4649]
[1763289835896,0.9827,3239.3,3238.9,0.002]
[1763289836095,0.4804,3239.0,3238.9,0.002]
[1763289836599,0.9793,3239.0,3238.9,0.002]
[1763289838227,4.06667264,3239.0,3238.9,0.002]
[1763289838429,4.78206689,3239.0,3238.9,0.002]
[1763289839901,0.4804,3239.0,3238.9,0.002]
[1763289840129,0.001,3239.3,3238.9,0.002]
[1763289841033,0.4989,3239.2,3238.9,0.002]
[1763289841666,0.4828,3239.0,3238.9,0.002]
[1763289841960,0.9817,3239.0,3238.9,0.002]
[1763289844059,0.02997599,3239.1,3238.9,0.002]
[1763289844060,3.0881514,3239.3,3238.9,0.4669]
[1763289844247,3.5870514,3239.3,3238.9,0.002]
[1763289844561,1.1185051,3239.2,3238.9,0.002]
[1763289844949,0.4836,3239.0,3238.9,0.002]
[1763289847328,4.20575014,3239.2,3238.9,0.002]
[1763289848062,0.4836,3239.0,3238.9,0.002]
[1763289848264,0.6675051,3239.2,3239.1,0.4525]
[1763289848438,0.001,3239.3,3239.1,0.4525]
[1763289848639,0.001,3239.3,3238.9,0.002]
[1763289848967,0.001,3239.3,3239.2,0.4525]
[1763289849756,0.001,3239.3,3239.2,0.9261]
[1763289849957,0.001,3239.3,3239.2,0.4525]
[1763289852073,0.4846,3239.3,3238.9,0.002]
[1763289852972,0.451,3239.2,3238.9,0.002]
[1763289853369,0.4846,3239.3,3238.9,0.002]
[1763289854073,0.4836,3239.0,3238.9,0.002]
[1763289855447,0.2606,3239.2,3238.9,0.002]
[1763289855650,3.34779214,3239.2,3238.9,0.002]
[1763289855950,3.34779557,3239.2,3238.9,0.002]
[1763289856151,0.2606,3239.2,3238.9,0.002]
[1763289856570,0.28818365,3239.1,3238.9,0.002]
[1763289857390,0.28818365,3239.1,3239.0,0.4788]
[1763289857579,0.28818999,3239.2,3239.0,0.4788]
[1763289857780,3.0880956,3239.3,3239.0,0.4788]
[1763289857951,0.28819028,3239.2,3239.0,0.4788]
[1763289858288,0.001,3239.3,3239.0,0.4788]
[1763289858489,0.28820531,3239.2,3239.0,0.4788]
[1763289859371,0.28820531,3239.2,3238.9,0.002]
[1763289860498,0.28920531,3239.3,3239.1,0.5917]
[1763289860708,0.28920531,3239.3,3239.2,0.4788]
[1763289861300,0.28920531,3239.3,3239.1,0.1129]
[1763289862098,0.28920531,3239.3,3238.9,2.50827734]
[1763289862609,0.28920531,3239.3,3238.9,5.59571778]
[1763289863721,0.28920531,3239.3,3239.2,0.4788]
[1763289863722,0.001,3239.3,3239.2,0.4788]
[1763289866415,0.001,3239.3,3238.9,5.10014208]
[1763289866787,0.28901951,3239.3,3238.9,5.10014208]
[1763289867282,0.001,3239.3,3238.9,5.10014208]
[1763289867719,0.001,3239.3,3238.9,5.59574208]
[1763289867897,0.001,3239.3,3238.9,5.10014208]
[1763289868420,0.4914,3239.0,3238.9,0.002]
[1763289868606,3.89673304,3239.0,3238.9,0.002]
[1763289868816,5.11378335,3239.0,3238.9,0.002]
[1763289871112,5.08380736,3239.0,3238.9,0.002]
[1763289871309,5.48931136,3239.0,3238.9,0.002]
[1763289874789,5.51928735,3239.0,3238.9,0.002]
[1763289874994,10.09272215,3239.0,3238.9,0.002]
[1763289875188,10.06274616,3239.0,3238.9,0.002]
[1763289877898,8.34289916,3239.0,3238.9,0.002]
[1763289878998,3.8655307,3239.0,3238.9,0.002]
[1763289879201,3.3741307,3239.0,3238.9,0.48]
[1763289879830,0.28675806,3239.0,3238.9,0.48]
[1763289880004,0.28775806,3239.3,3238.9,0.002]
[1763289880327,3.55978202,3239.2,3238.9,0.002]
[1763289880534,3.08809348,3239.3,3238.9,0.002]
[1763289880939,6.17525964,3239.3,3238.9,0.002]
[1763289881299,0.001,3239.3,3238.9,0.002]
[1763289881630,0.7602079,3239.3,3238.9,0.002]
[1763289881836,0.2866079,3239.2,3238.9,0.002]
[1763289882021,0.4726,3239.2,3238.9,0.002]
[1763289882627,0.001,3239.3,3238.9,0.002]
[1763289882921,0.7602085,3239.3,3238.9,0.002]
[1763289883120,0.2866085,3239.2,3238.9,0.002]
[1763289884002,3.08727733,3239.1,3238.9,0.002]
[1763289886542,0.001,3239.1,3238.9,0.002]
[1763289888632,3.08827733,3239.1,3238.9,0.002]
[1763289893255,0.001,3239.1,3238.9,0.002]
[1763289895353,3.08827733,3239.1,3238.9,0.002]
[1763289896147,3.67789873,3239.0,3238.9,0.002]
[1763289896376,1.66706002,3239.0,3238.9,0.002]
[1763289898750,4.75443266,3239.0,3238.9,0.002]
[1763289899250,4.72445667,3239.0,3238.9,0.002]
[1763289904150,6.44378716,3239.0,3238.9,0.002]
[1763289904466,7.6354163,3239.0,3238.9,0.002]
[1763289906250,4.97108581,3239.0,3238.9,0.002]
[1763289906458,5.43658581,3239.0,3238.9,0.002]
[1763289906663,5.89698581,3239.0,3238.9,0.002]
[1763289908482,5.03108181,3239.0,3238.9,0.002]
[1763289908687,0.28658003,3239.0,3238.9,0.4971]
[1763289908851,0.28658003,3239.0,3238.9,0.9787]
[1763289909886,0.28658003,3239.0,3238.9,0.4971]
[1763289910287,3.3748634,3239.1,3238.9,0.9787]
[1763289910466,3.08828337,3239.1,3239.0,0.4951]
[1763289910780,0.28834386,3239.1,3239.0,0.4951]
[1763289910974,3.08827733,3239.1,3239.0,0.4951]
[1763289911171,3.37562119,3239.1,3239.0,0.4951]
[1763289911865,0.28834386,3239.1,3239.0,0.4951]
[1763289912387,3.37562119,3239.1,3239.0,0.4951]
[1763289912888,0.28834386,3239.1,3239.0,0.9767]
[1763289913190,0.28834386,3239.1,3239.0,0.4951]
[1763289913392,0.001,3239.6,3239.3,0.608]
[1763289913590,0.001,3239.7,3239.6,5.07240178]
[1763289913887,0.001,3239.7,3239.6,1.6288408]
[1763289914200,0.001,3239.7,3239.6,2.1104408]
[1763289914601,0.001,3239.7,3239.6,5.19724163]
[1763289915216,0.001,3239.7,3239.6,6.91657212]
[1763289916198,0.001,3239.7,3239.6,2.1104408]
[1763289916912,0.001,3239.7,3239.6,5.19724163]
[1763289918419,0.001,3239.7,3239.6,6.91657212]
[1763289918607,0.001,3239.7,3239.6,7.41657212]
[1763289918987,0.001,3239.7,3239.6,7.70634803]
[1763289919883,0.001,3239.7,3239.6,1.6288408]
[1763289920318,3.08680083,3239.6,3238.9,0.12561493]
[1763289920482,0.4738,3239.0,3238.9,0.002]
[1763289921028,0.9422,3239.0,3238.9,0.002]
[1763289922108,0.4684,3239.3,3238.9,0.4875]
[1763289922310,0.4756,3239.0,3238.9,0.002]
[1763289922619,3.56297264,3239.0,3238.9,0.002]
[1763289923685,0.4756,3239.0,3238.9,0.002]
[1763289923988,3.08720078,3239.2,3238.9,0.4875]
[1763289924415,0.1246627,3239.7,3238.9,0.4875]
[1763289924416,3.08689612,3239.5,3238.9,0.4875]
[1763289924589,0.31616931,3239.4,3238.9,0.4875]
[1763289924917,0.78456931,3239.4,3238.9,0.4875]
[1763289925121,0.28619332,3239.3,3238.9,0.4875]
[1763289925335,0.28619332,3239.3,3238.9,0.002]
[1763289925336,0.4756,3239.0,3238.9,0.002]
[1763289926459,3.56297264,3239.0,3238.9,0.002]
[1763289929120,4.03137264,3239.0,3238.9,0.002]
[1763289929328,4.60968129,3239.0,3238.9,0.002]
[1763289930933,4.14128129,3239.0,3238.9,0.002]
[1763289931258,3.56297264,3239.0,3238.9,0.002]
[1763289932767,3.08733333,3239.1,3238.9,0.002]
[1763289932943,0.4756,3239.0,3238.9,0.002]
[1763289933251,4.03137264,3239.0,3238.9,0.002]
[1763289935339,3.56297264,3239.0,3238.9,0.002]
[1763289935861,4.74522324,3239.0,3238.9,0.002]
[1763289938335,3.79942324,3239.0,3238.9,0.4807]
[1763289938536,0.4675,3239.0,3238.9,0.002]
[1763289939767,3.08737264,3239.0,3238.9,0.4807]
[1763289940164,4.02507264,3239.0,3238.9,0.002]
[1763289940830,3.55487264,3239.0,3238.9,0.002]
[1763289941171,4.9980061,3239.0,3238.9,0.002]
[1763289944437,5.28483669,3239.0,3238.9,0.002]
[1763289945658,4.81463669,3239.0,3238.9,0.002]
[1763289945958,3.37420323,3239.0,3238.9,0.4807]
[1763289946431,3.37420323,3239.0,3238.9,0.002]
[1763289947167,0.28683059,3239.0,3238.9,0.4807]
[1763289947370,0.28683059,3239.0,3238.9,0.9385]
[1763289948464,0.28683059,3239.0,3238.9,0.4807]
[1763289948635,3.08704991,3239.4,3238.9,1.14772539]
[1763289948837,0.28683059,3239.3,3238.9,0.9385]